{"text_format":"1","workbook":"xlsx","n_sheets":5,"sheets":["CLASSIFICAÇÃO","jan2026","fev2026","mar2026","MODELO"],"not_rendered":{"charts":0,"images":2,"macros":1,"external_links":0,"defined_names":1,"comments":0,"pivot_tables":0},"unopened":[],"bounds":{"document_bytes":16777216,"sheet_cells":100000,"rows_first":2000,"rows_last":500,"rows_between":2000,"halvings":0,"cell_chars":16384,"cell_head_chars":4096},"cells_cut":0,"cells_raw":0,"read":"whole","date_system":"1900"}

{"sheet":"CLASSIFICAÇÃO","index":0,"n_rows":123,"n_cols":5,"rows_kept":123,"cut":false,"hidden":false,"merged":[[0,0,0,4],[1,0,1,4]]}
["CLASSIFICAÇÃO GERAL ACPA – TEMPORADA DE VERÃO 2026 DOMINGO"]
["COLEIRO FIBRA","Pássaro","Proprietário","Origem","Pontos"]
["POSIÇÃO","NOME DO PÁSSARO","NOME DO PROPRIETÁRIO","ORIGEM (CIDADE)","PONTUAÇÃO"]
["1º","MUTANTE","CH FAMÍLIA MINGAL","PARAÍBA DO SUL",{"$f":"22+20+24+26+28+23+30+23+30+30","v":256}]
["2º","PITBULL","JOÃO MARCOS","AREAL",{"$f":"24+30+24+28+30+18+16+28+21","v":219}]
["3º","TREM","RAFAEL","PARAÍBA DO SUL",{"$f":"23+26+23+22+23+13","v":130}]
["4º","THOR","NATHAN","LEVY GASPARIAN",{"$f":"23+19+22+19+20+19","v":122}]
["5º","DEGOLADOR","GABRIEL/WL F. MINGAL","PARAÍBA DO SUL",{"$f":"13+17+24+14+21+24","v":113}]
["6º","PELÉ","WILLIAM","TRÊS RIOS",{"$f":"26+24+28+26","v":104}]
["7º","SAFONOV","DAVI","LEVY GASPARIAN",{"$f":"22+19+28+14+15","v":98}]
["8º","AMOSTRADINHO","PAULINHO/ARTHUR","TRÊS RIOS",{"$f":"19+22+19+16+20","v":96}]
["9º","PANTERA NEGRA","PABLO","ITAIPAVA",{"$f":"13+21+19+20+22","v":95}]
["10º","PICA-PAU","ADÃO","TRÊS RIOS",{"$f":"18+16+17+21+15","v":87}]
["11º","PÉROLA NEGRA","ROMÁRIO OLIVEIRA","PETRÓPOLIS",{"$f":"26+28+30","v":84}]
["12º","MALIBÚ","PABLO","ITAIPAVA",{"$f":"26+23+28","v":77}]
["13º","REI DA RUA","JONAS","TRÊS RIOS",{"$f":"30+16+26","v":72}]
["14º","V8","GABRIEL/LEANDRO","PARAÍBA DO SUL",{"$f":"22+24+26","v":72}]
["15º","JÓIA RARA","BAIANO","VASSOURAS",{"$f":"30+24+14","v":68}]
["16º","PROFETA","DHACO/LÁZARO","PARAÍBA DO SUL",{"$f":"17+23+26","v":66}]
["17º","ÁGUA SANTA","FAMÍLIA MINGAL","PARAÍBA DO SUL",{"$f":"19+28+17","v":64}]
["18º","TIK TOK","RAFAEL","BARBACENA",{"$f":"30+30","v":60}]
["19º","TRÓIA","BRUNO","TRÊS RIOS",{"$f":"21+21+14","v":56}]
["20º","MENINO MALUCO","BRUNO","TRÊS RIOS",{"$f":"22+15+18","v":55}]
["21º","EL CHAPO","RAFAEL","BARBACENA",{"$f":"22+28","v":50}]
["22º","LAMPIÃO","ZECA/LUÍS","CHIADOR",{"$f":"28+18","v":46}]
["23º","MENINO DO MORRO","GABRIEL/VLADIMIR","PARAÍBA DO SUL",{"$f":"16+13+16","v":45}]
["24º","SELVAGEM","HENRIQUE","TRÊS RIOS",{"$f":"23+22","v":45}]
["25º","BOMBASTIC","ADLER OLIVEIRA","AREAL",{"$f":"23+21","v":44}]
["26º","CAPOEIRA","AMARILDO","VASSOURAS",{"$f":"21+23","v":44}]
["27º","CLONE","GIBA","TRÊS RIOS",{"$f":"26+18","v":44}]
["28º","BRAD PIT","FELIPE ROCHA","TRÊS RIOS",{"$f":"20+23","v":43}]
["29º","JAMELÃO","CH FAMÍLIA MINGAL","PARAÍBA DO SUL",{"$f":"22+21","v":43}]
["30º","INVOCADO","RODRIGO/ANDRÉ","PETRÓPOLIS",{"$f":"24+14","v":38}]
["31º","BINHA PRETO","EULER","TRÊS RIOS",{"$f":"16+21","v":37}]
["32º","SAMÁ","KLEBER","AREAL",{"$f":"20+17","v":37}]
["33º","RAIO","NICOLAS REIS","ITAIPAVA",{"$f":"21+15","v":36}]
["34º","THANOS","SILAS FLÁVIO","TRÊS RIOS",{"$f":"18+18","v":36}]
["35º","V8","SANDRINHO","TRÊS RIOS",{"$f":"15+19","v":34}]
["36º","GAGUINHO","JONAS","TRÊS RIOS",{"$f":"14+18","v":32}]
["37º","ADRENALINA","EBERTON","SÃO JOSÉ",{"$f":"18+13","v":31}]
["38º","WOLVERINE","PAULINHO","TRÊS RIOS",{"$f":"16+15","v":31}]
["39º","FAKE NEWS","MOACIR/MARCOS","GUARARÁ",30]
["40º","NEXTEL","NATHAN","LEVY GASPARIAN",{"$f":"15+15","v":30}]
["41º","PAPA-LÉGUAS","VAZ","VASSOURAS",30]
["42º","ROLEX","ILSON","SÃO JOSÉ",30]
["43º","SOBREVIVENTE","WL/JOÃO VITOR","PARAÍBA DO SUL",{"$f":"16+14","v":30}]
["44º","ALMEJADO","DJ RODRIGO","PARAÍBA DO SUL",28]
["45º","ASAF","ANDRÉ LUIS","PARAÍBA DO SUL",28]
["46º","MALUCO","ANDRÉ LUIS","PARAÍBA DO SUL",28]
["47º","DIAMANTE","ILSON","SÃO JOSÉ",26]
["48º","LAMBADA","DANIEL","ITABERABA",26]
["49º","PALETÓ","LI","BARBACENA",{"$f":"13+13","v":26}]
["50º","RESISTENTE","JOSÉ SÉRGIO","PARAÍBA DO SUL",26]
["51º","TROVÃO","JUNINHO","TRÊS RIOS",{"$f":"13+13","v":26}]
["52º","GENERAL","FAMÍLIA MINGAL","PARAÍBA DO SUL",24]
["53º","PAVAROTTI","JORDAN/GIOVANI","LEVY GASPARIAN",24]
["54º","PIX BET","MAYRON PLANTEL BROTHER","SÃO JOSÉ",24]
["55º","V10","JUNINHO PACHECO","TRÊS RIOS",24]
["56º","DANONE","GILSON/GUSTAVO","S. DUMONT/TRÊS RIOS",23]
["57º","KID","VLADIMIR","PARAÍBA DO SUL",22]
["58º","LAMBORGUINE","GUSTAVO","SÃO JOSÉ",22]
["59º","DUBAI","WILLIAM","TRÊS RIOS",21]
["60º","FÚRIA","LUCAS ALVES","ITAIPAVA",21]
["61º","DIMENOR","LEONARDO","PARAÍBA DO SUL",20]
["62º","MARAVILHA","BRUNO PLACAS","SÃO JOSÉ",20]
["63º","MENTIRINHA","FERNANDO PEREIRA","PETRÓPOLIS",20]
["64º","PARDAL","GABRIEL/WL FAMÍLIA MINGAL","PARAÍBA DO SUL",20]
["65º","SONETO","WELINGTON","PETRÓPOLIS",20]
["66º","TITAN","CLAUDIO","VASSOURAS",20]
["67º","ZIDANE","GUSTAVO/JHONATAS","PARAÍBA DO SUL",20]
["68º","CHEQUE-MATE","JHONATAS/GUSTAVO","PARAÍBA DO SUL",19]
["69º","CHUPA-CABRA","REINALDO","BARBACENA",19]
["70º","MAGO NEGRO","CLOVIS/RODRIGO","TRÊS RIOS",19]
["71º","MARRETA","GABRIEL","PARAÍBA DO SUL",19]
["72º","BOLT","REINALDO","JUIZ DE FORA",18]
["73º","CEIFADOR","TATIM","TRÊS RIOS",18]
["74º","FAÍSCA","BRUNO/RODRIGO","PETRÓPOLIS",18]
["75º","REMY","RAFAEL","BARBACENA",18]
["76º","CASCAVEL","ANDRÉ/BRUNO","PARAÍBA DO SUL",17]
["77º","ESCOBAR","IGOR","PARAÍBA DO SUL",17]
["78º","FURIOSO","LI","BARBACENA",17]
["79º","MALUQUINHO","CLOVIS/RODRIGO","-",17]
["80º","MASSACRE","HENRIQUE","PARAÍBA DO SUL",17]
["81º","SEM NOME","SEM NOME","SEM NOME",17]
["82º","SINISTRO","MATEUS","PARAÍBA DO SUL",17]
["83º","XEQUE-MATE","JHONATAS/GUSTAVO","PARAÍBA DO SUL",17]
["84º","ASTRO","DHACO","PARAÍBA DO SUL",16]
["85º","BOPE","VITOR MÁRCIO","TRÊS RIOS",16]
["86º","MALUQUINHO","GIBA","TRÊS RIOS",16]
["87º","PESADELO","KLEBER SILVA","PETRÓPOLIS",16]
["88º","BOLT","ADRIANO","PETRÓPOLIS",15]
["89º","CAVIAR","BRUNO","TRÊS RIOS",15]
["90º","PEDRADA","BRUNO/RODRIGO","PETRÓPOLIS",15]
["91º","ROMÁRIO","CH MINGAL","PARAÍBA DO SUL",15]
["92º","URSO NEGRO","JUNINHO PACHECO","TRÊS RIOS",15]
["93º","ARCANJO","FAM. MINGAL/MATHEUS","PARAÍBA DO SUL",14]
["94º","FLECH","RODRIGO","-",14]
["95º","JIRAYA","GABRIEL/TIAGO","PARAÍBA DO SUL",14]
["96º","ROJÃO","FÁBIO","TRÊS RIOS",14]
["97º","TENEBROSO","DANILO MOREIRA","TRÊS RIOS",14]
["98º","THUNDER","RODRIGO/BRUNO","PETRÓPOLIS",14]
["99º","DIPIRONA","HIGOR","TRÊS RIOS",13]
["100º","MARRETA","BAIANO","VASSOURAS",13]
["101º","TIROTEIO","RAUANI VALLE","TRÊS RIOS",13]
["102º","ZIG-ZAG","MARCOS VINÍCIUS","LEVY GASPARIAN",13]
["103º"]
["104º"]
["105º"]
["106º"]
["107º"]
["108º"]
["109º"]
["110º"]
["111º"]
["112º"]
["113º"]
["114º"]
["115º"]
["116º"]
["117º"]
["118º"]
["119º"]
["120º"]

{"sheet":"jan2026","index":1,"n_rows":37,"n_cols":29,"rows_kept":37,"cut":false,"hidden":false,"merged":[[0,0,0,6],[0,8,0,13],[0,15,0,20],[0,22,0,28]]}
["04/01/2026 (DOMINGO)",null,null,null,null,null,null,null,"11/01/2026 (DOMINGO)",null,null,null,null,null,null,"18/01/2026 (DOMINGO)",null,null,null,null,null,null,"25/01/2026 (DOMINGO)"]
["POS.","PÁSSARO","PROPRIETÁRIO","ORIGEM","VASS.","CANTOS","PONTOS",null,"POS.","PÁSSARO","PROPRIETÁRIO","ORIGEM","CANTOS","PONTOS",null,"POS.","PÁSSARO","PROPRIETÁRIO","ORIGEM","CANTOS","PONTOS",null,"POS.","PÁSSARO","PROPRIETÁRIO","ORIGEM","VASS.","CANTOS","PONTOS"]
["1º","TIK TOK","RAFAEL","BARBACENA",135,244,30,null,"1º","TIK TOK","RAFAEL","BARBACENA",304,30,null,"1º","PIT BULL","JOÃO MARCOS","AREAL",182,30,null,"1º","JÓIA RARA","BAIANO","VASSOURAS",112,176,30]
["2º","MALUCO","ANDRÉ LUIS","PARAÍBA DO SUL",206,212,28,null,"2º","EL CHAPO","RAFAEL","BARBACENA",239,28,null,"2º","ÁGUA SANTA","CT LIMA","PARAÍBA DO SUL",159,28,null,"2º","PITBULL","JOÃO MARCOS","AREAL",113,169,28]
["3º","LAMBADA","DANIEL","ITABERABA",185,203,26,null,"3º","CLONE","GIBA","TRÊS RIOS",201,26,null,"3º","RESISTENTE","JOSÉ SÉRGIO","PARAÍBA DO SUL",147,26,null,"3º","PELÉ","WILLIAM","TRÊS RIOS",152,163,26]
["4º","PITBULL","JOÃO MARCOS","AREAL",117,187,24,null,"4º","PIT BULL","JOÃO MARCOS","AREAL",194,24,null,"4º","INVOCADO","RODRIGO/ANDRÉ","PETRÓPOLIS",144,24,null,"4º","V10","JUNINHO PACHECO","TRÊS RIOS",146,156,24]
["5º","THOR","NATHAN","LEVY GASPARIAN",97,157,23,null,"5º","BRAD PIT","FELIPE","TRÊS RIOS",181,23,null,"5º","SELVAGEM","HENRIQUE","TRÊS RIOS",141,23,null,"5º","TREM","RAFAEL","PARAÍBA DO SUL",121,151,23]
["6º","EL CHAPO","RAFAEL","BARBACENA",143,155,22,null,"6º","JAMELÃO","CH FAMÍLIA MINGAL","PARAÍBA DO SUL",176,22,null,"6º","SAFONOV","DAVI","LEVY GASPARIAN",138,22,null,"6º","MUTANTE","CH","PARAÍBA DO SUL",114,150,22]
["7º","TRÓIA","BRUNO","TRÊS RIOS",125,155,21,null,"7º","TRÓIA","BRUNO","TRÊS RIOS",151,21,null,"7º","FÚRIA","LUCAS ALVES","ITAIPAVA",137,21,null,"7º","JAMELÃO","CH","PARAÍBA DO SUL",52,149,21]
["8º","BRAD PIT","FELIPE ROCHA","TRÊS RIOS",93,154,20,null,"8º","PARDAL","GABRIEL/WL FAMÍLIA MINGAL","PARAÍBA DO SUL",150,20,null,"8º","DIMENOR","LEONARDO","PARAÍBA DO SUL",127,20,null,"8º","TITAN","CLAUDIO","VASSOURAS",97,141,20]
["9º","ÁGUA SANTA","FAMÍLIA MINGAL","PARAÍBA DO SUL",93,149,19,null,"9º","SAFANOV","DAVI","LEVY GASPARIAN",140,19,null,"9º","THOR","NATHAN","LEVY GASPARIAN",121,19,null,"9º","CHEQUE-MATE","JHONATAS/GUSTAVO","PARAÍBA DO SUL",94,139,19]
["10º","REMY","RAFAEL","BARBACENA",133,146,18,null,"10º","CEIFADOR","TATIM","TRÊS RIOS",137,18,null,"10º","PICA-PAU","ADÃO","TRÊS RIOS",115,18,null,"10º","GAGUINHO","JONAS","TRÊS RIOS",61,139,18]
["11º","FURIOSO","LI","BARBACENA",140,145,17,null,"11º","ÁGUA SANTA","FAMÍLIA MINGAL","PARAÍBA DO SUL",130,17,null,"11º","SINISTRO","MATEUS","PARAÍBA DO SUL",114,17,null,"11º","SEM NOME","SEM NOME","SEM NOME",132,138,17]
["12º","BINHA PRETA","EULER","TRÊS RIOS",87,144,16,null,"12º","ASTRO","DHACO","PARAÍBA DO SUL",128,16,null,"12º","MENINO DO MORRO","GABRIEL/VLADIMIR","PARAÍBA DO SUL",105,16,null,"12º","BOPE","VITOR MÁRCIO","TRÊS RIOS",101,137,16]
["13º","CAVIAR","BRUNO","TRÊS RIOS",102,142,15,null,"13º","NEXTEL","NATHAN","LEVY GASPARIAN",125,15,null,"13º","V8","SANDRINHO","TRÊS RIOS",103,15,null,"13º","BOLT","ADRIANO","PETRÓPOLIS",66,130,15]
["14º","GAGUINHO","JONAS","TRÊS RIOS",61,142,14,null,"14º","INVOCADO","ANDRÉ FREITAS","PETRÓPOLIS",124,14,null,"14º","ROJÃO","FÁBIO","TRÊS RIOS",102,14,null,"14º","ARCANJO","FAM. MINGAL/MATHEUS","PARAÍBA DO SUL",86,124,14]
["15º","PALETÓ","LI","BARBACENA",151,132,13,null,"15º","MENINO DO MORRO","GABRIEL/VLADEMIR","PARAÍBA DO SUL",124,13,null,"15º","DIPIRONA","HIGOR","TRÊS RIOS",97,13,null,"15º","TIROTEIO","RAUANI VALLE","TRÊS RIOS",100,116,13]
["16º","FAIXA PRETA","MÁRCIO VINÍCIUS","LEVY GASPARIAN",68,128,null,null,"16º","ZEUS","VALDO","TRÊS RIOS",124,null,null,"16º","BAIXARIA","FAMÍLIA HONORATO","PARAÍBA DO SUL",83,null,null,"16º","BIG MONEY","ADLER OLIVEIRA","AREAL",81,116]
["17º","BMW","JOÃO PEDRO","PARAÍBA DO SUL",78,120,null,null,"17º","MARGARINA","CLÁUDIO","TRÊS RIOS",123,null,null,"17º","CICLONE","LEANDRO","TRÊS RIOS",81,null,null,"17º","SUPER","EDUARDO","TRÊS RIOS",63,115]
["18º","FILHOTE","GABRIEL/WL FAM. MINGAL","PARAÍBA DO SUL",73,120,null,null,"18º","FORASTEIRO","GABRIEL/WL FAMÍLIA MINGAL","PARAÍBA DO SUL",122,null,null,"18º","FILHOTE REI DA RUA","GUSTAVO/RAYANE","PARAÍBA DO SUL",75,null,null,"18º","BICO BRANCO","WL FAMÍLIA MINGAL","PARAÍBA DO SUL",89,113]
["19º","XANDÃO","LI","BARBACENA",77,119,null,null,"19º","TROVÃO","LUCIMAR/LUIZ HENRIQUE","TRÊS RIOS",118,null,null,"19º","BRUTUS","HENRIQUE","TRÊS RIOS",75,null,null,"19º","RESISTENTE","JOSÉ SÉRGIO","PARAÍBA DO SUL",75,105]
["20º","REI DO FURDUNÇO","WILLIAN","TRÊS RIOS",99,115,null,null,"20º","GARGALHADA","CICINHO","PARAÍBA DO SUL",117,null,null,"20º","ILUMINADO","RILDELSON","PETRÓPOLIS",74,null,null,"20º","MCDONALD'S","JESSÉ JÚNIOR","TRÊS RIOS",62,104]
["21º","DUBAI","WILLIAM","TRÊS RIOS",82,113,null,null,"21º","EL LOUCO","RAFAEL/JOSÉ SÉRGIO","PARAÍBA DO SUL",117,null,null,"21º","PESADELO","HENRIQUE","ANTA",73,null,null,"21º","MONSTER","GABRIEL M./RICARDINHO","PARAÍBA DO SUL",88,100]
["22º","CALIBRE 12","RAFAEL","BARBACENA",87,108,null,null,"22º","ESPOLETA","RAFAEL","NITERÓI",116,null,null,"22º","LIGEIRO","MARCOS VINÍCIUS","PARAÍBA DO SUL",70,null,null,"22º","MARRETA","DOUGLAS","VASSOURAS",82,100]
["23º","V8","SANDRINHO","TRÊS RIOS",103,99,null,null,"23º","MAESTRO","CH FAMÍLIA MINGAL","PARAÍBA DO SUL",109,null,null,"23º","ATÔMICO","GIBA","TRÊS RIOS",64,null,null,"23º","PICA-PAU","ADÃO","TRÊS RIOS",76,92]
["24º","CYBORG","WALTER MORELI","PETRÓPOLIS",70,96,null,null,"24º","GAGUINHO","JONAS","TRÊS RIOS",105,null,null,"24º","SURREAL","MURILO","AREAL",59,null,null,"24º","DIPIRONA","HIGOR SILVA","TRÊS RIOS",68,87]
["25º","OURO BRANCO","DHACO","PARAÍBA DO SUL",77,95,null,null,"25º","ABISMO","JHONATAS/GUSTAVO","PARAÍBA DO SUL",99,null,null,"25º","SKANK","EMERSON","TRÊS RIOS",45,null,null,"25º","ALMIRANTE","JONAS","PARAÍBA DO SUL",75,69]
["26º","BICO BRANCO","GABRIEL M./RICARDINHO","PARAÍBA DO SUL",55,95,null,null,"26º","CICLONE","LEANDRO","TRÊS RIOS",92,null,null,"26º","GOLPISTA","VLADEMIR","PARAÍBA DO SUL",34,null,null,"26º","CICLONE","LEANDRO","TRÊS RIOS",50,66]
["27º","GAROTO","PINHEIRO","TRÊS RIOS",76,84,null,null,"27º","SURREAL","MURILO","AREAL",85,null,null,"27º",null,null,null,null,null,null,"27º","SELVAGEM","JOSENILTON","PARAÍBA DO SUL",66,61]
["28º","EXPIRAÇÃO","JHONATAS/GUSTAVO","PARAÍBA DO SUL",62,84,null,null,"28º","FAZ O CIZ","LUCAS","TRÊS RIOS",76,null,null,"28º",null,null,null,null,null,null,"28º","TOPURIA","VITINHO","PETRÓPOLIS",67,52]
["29º","PROFETA","RAFAEL JOSÉ","VASSOURAS",95,70,null,null,"29º","FILHOTE REI DA RUA","GUSTAVO/RAYANE","PARAÍBA DO SUL",74,null,null,"29º",null,null,null,null,null,null,"29º","MARGARINA","CLAUDIO MARCIO","TRÊS RIOS",97,48]
["30º","DELEGADO","RODRIGO/BRUNO","PETRÓPOLIS",93,68,null,null,"30º","PELÉ","DHACO","PARAÍBA DO SUL",72,null,null,"30º",null,null,null,null,null,null,"30º","FANTÁSTICO","EDUARDO","TRÊS RIOS",56,22]
["31º","TE ALEJO","LUAN","PARAÍBA DO SUL",72,56,null,null,"31º","SHELBY","UILIAN","-",69,null,null,"31º",null,null,null,null,null,null,"31º"]
["32º","FRAJOLA","LUIZ GUSTAVO","PARAÍBA DO SUL",60,49,null,null,"32º","POPEY","FÁBIO","TRÊS RIOS",41,null,null,"32º",null,null,null,null,null,null,"32º"]
["33º","PELÉ","DHACO","PARAÍBA DO SUL",77,37,null,null,"33º","BBS","DHACO","PARAÍBA DO SUL",25,null,null,"33º",null,null,null,null,null,null,"33º"]
["34º",null,null,null,null,null,null,null,"34º","ROJÃO","FÁBIO","TRÊS RIOS",24,null,null,"34º",null,null,null,null,null,null,"34º"]
["35º",null,null,null,null,null,null,null,"35º",null,null,null,null,null,null,"35º",null,null,null,null,null,null,"35º"]

{"sheet":"fev2026","index":2,"n_rows":46,"n_cols":31,"rows_kept":46,"cut":false,"hidden":false,"merged":[[0,0,0,6],[0,8,0,14],[0,16,0,22],[0,24,0,30]]}
["01/02/2026 (DOMINGO)",null,null,null,null,null,null,null,"08/02/2026 (DOMINGO)",null,null,null,null,null,null,null,"15/02/2026 (DOMINGO)",null,null,null,null,null,null,null,"22/02/2026 (DOMINGO)"]
["POS.","PÁSSARO","PROPRIETÁRIO","ORIGEM","VASS.","CANTOS","PONTOS",null,"POS.","PÁSSARO","PROPRIETÁRIO","ORIGEM","VASS.","CANTOS","PONTOS",null,"POS.","PÁSSARO","PROPRIETÁRIO","ORIGEM","VASS.","CANTOS","PONTOS",null,"POS.","PÁSSARO","PROPRIETÁRIO","ORIGEM","VASS.","CANTOS","PONTOS"]
["1º","FAKE NEWS","MOACIR/MARCOS","GUARARÁ",149,197,30,null,"1º","ROLEX","ILSON","SÃO JOSÉ",134,207,30,null,"1º","PIT BULL","JOÃO MARCOS","AREAL",160,298,30,null,"1º","REI DA RUA","JONAS","TRÊS RIOS",99,213,30]
["2º","ASAF","ANDRÉ LUIS","PARAÍBA DO SUL",147,192,28,null,"2º","SAFONOV","DAVI","LEVY GASPARIAN",50,206,28,null,"2º","ALMEJADO","DJ RODRIGO","PARAÍBA DO SUL",180,290,28,null,"2º","MUTANTE","CH/CARLIM","PARAÍBA DO SUL",93,210,28]
["3º","TREM","RAFAEL","PARAÍBA DO SUL",112,180,26,null,"3º","DIAMANTE","ILSON","SÃO JOSÉ",89,199,26,null,"3º","MUTANTE","CH/CARLIM","PARAÍBA DO SUL",127,205,26,null,"3º","PÉROLA NEGRA","ROMÁRIO OLIVEIRA","PETRÓPOLIS",75,208,26]
["4º","PELÉ","WILLIAM","TRÊS RIOS",119,179,24,null,"4º","MUTANTE","CH/CARLIM","PARAÍBA DO SUL",82,176,24,null,"4º","PAVAROTTI","JORDAN/GIOVANI","LEVY GASPARIAN",62,192,24,null,"4º","PIX BET","MAYRON PLANTEL BROTHER","SÃO JOSÉ",125,194,24]
["5º","DANONE","GILSON/GUSTAVO","S. DUMONT/TRÊS RIOS",89,177,23,null,"5º","BOMBASTIC","ADLER","AREAL",108,174,23,null,"5º","PROFETA","DHACO/LÁZARO","PARAÍBA DO SUL",133,188,23,null,"5º","TREM","RAFAEL","PARAÍBA DO SUL",100,176,23]
["6º","LAMBORGUINE","GUSTAVO","SÃO JOSÉ",177,175,22,null,"6º","SELVAGEM","HENRIQUE","TRÊS RIOS",110,154,22,null,"6º","THOR","NATHAN","LEVY GASPARIAN",132,183,22,null,"6º","MENINO MALUCO","BRUNO","TRÊS RIOS",115,161,22]
["7º","BINHA PRETO","EULER","TRÊS RIOS",85,164,21,null,"7º","PANTERA NEGRA","PABLO","ITAIPAVA",126,150,21,null,"7º","BOMBASTIC","ADLER OLIVEIRA","AREAL",135,167,21,null,"7º","PICA-PAU","ADÃO","TRÊS RIOS",97,158,21]
["8º","MUTANTE","CH FAMÍLIA MINGAL","PARAÍBA DO SUL",129,162,20,null,"8º","SAMÁ","LUCAS","TRÊS RIOS",91,148,20,null,"8º","SONETO","WELINGTON","PETRÓPOLIS",134,151,20,null,"8º","MARAVILHA","BRUNO PLACAS","SÃO JOSÉ",116,151,20]
["9º","MARRETA","GABRIEL","PARAÍBA DO SUL",120,161,19,null,"9º","AMOSTRADINHO","PAULINHO/ARTHUR","TRÊS RIOS",93,135,19,null,"9º","V8","SANDRINHO","TRÊS RIOS",107,140,19,null,"9º","THOR","NATHAN","LEVY GASPARIAN",162,147,19]
["10º","BOLT","REINALDO","JUIZ DE FORA",98,158,18,null,"10º","ADRENALINA","EBERTON","SÃO JOSÉ",87,129,18,null,"10º","THANOS","SILAS FLÁVIO","TRÊS RIOS",74,131,18,null,"10º","PIT BULL","JOÃO MARCOS","AREAL",139,142,18]
["11º","PROFETA","DHACO/LÁZARO","PARAÍBA DO SUL",116,155,17,null,"11º","XEQUE-MATE","JHONATAS/GUSTAVO","PARAÍBA DO SUL",92,121,17,null,"11º","PICA-PAU","ADÃO","TRÊS RIOS",84,123,17,null,"11º","MASSACRE","HENRIQUE","PARAÍBA DO SUL",101,141,17]
["12º","PESADELO","KLEBER SILVA","PETRÓPOLIS",69,154,16,null,"12º","PICA-PAU","ADÃO","TRÊS RIOS",87,121,16,null,"12º","MALUQUINHO","GIBA","TRÊS RIOS",61,123,16,null,"12º","SOBREVIVENTE","WL/JOÃO VITOR","PARAÍBA DO SUL",109,138,16]
["13º","URSO NEGRO","JUNINHO PACHECO","TRÊS RIOS",87,149,15,null,"13º","ROMÁRIO","CH MINGAL","PARAÍBA DO SUL",78,110,15,null,"13º","NEXTEL","NATHAN","LEVY GASPARIAN",175,122,15,null,"13º","SAFONOV","DAVI","LEVY GASPARIAN",95,138,15]
["14º","THUNDER","RODRIGO/BRUNO","PETRÓPOLIS",60,148,14,null,"14º","FLECH","RODRIGO","-",85,108,14,null,"14º","SAFONOV","DAVI","LEVY GASPARIAN",88,119,14,null,"14º","TENEBROSO","DANILO MOREIRA","TRÊS RIOS",92,137,14]
["15º","PANTERA NEGRA","PABLO","ITAIPAVA",111,141,13,null,"15º","ZIG-ZAG","MARCOS VINÍCIUS","LEVY GASPARIAN",74,107,13,null,"15º","DEGOLADOR","GABRIEL/WL FAM. MINGAL","PARAÍBA DO SUL",43,118,13,null,"15º","ADRENALINA","EBERTON","SÃO JOSÉ",104,135,13]
["16º","CHAPA QUENTE","MOACIR","GUARARÁ",90,135,null,null,"16º","SCORPION","ADRIANO","PETRÓPOLIS",99,101,null,null,"16º","TREM","RAFAEL","PARAÍBA DO SUL",114,117,null,null,"16º","SCORPION","ADRIANO","PETRÓPOLIS",103,135]
["17º","V8","SANDRINHO","TRÊS RIOS",87,135,null,null,"17º","MALIBÚ","PABLO","ITAIPAVA",79,98,null,null,"17º","JHON NETO","JEFFERSON","PARAÍBA DO SUL",93,108,null,null,"17º","BRUTAL","RAFAEL","PETRÓPOLIS",83,135]
["18º","PICA-PAU","ADÃO","TRÊS RIOS",71,132,null,null,"18º","BIG MONEY","ADLER","AREAL",111,96,null,null,"18º","SAMÁ","KLEBER","AREAL",59,100,null,null,"18º","DUBAI","WILLIAM","TRÊS RIOS",118,134]
["19º","AMOSTRADINHO","PAULINHO/ARTHUR","TRÊS RIOS",126,130,null,null,"19º","BOLT","EBERTON","SÃO JOSÉ",77,93,null,null,"19º","MISTÉRIO","FÁBIO","TRÊS RIOS",80,98,null,null,"19º","BOLT","EBERTON","SÃO JOSÉ",78,127]
["20º","V8","GABRIEL/LEANDRO","PARAÍBA DO SUL",102,130,null,null,"20º","GIBA CAMARO","SANDRINHO","TRÊS RIOS",90,87,null,null,"20º","MC DONALD'S","JESSÉ JÚNIOR","TRÊS RIOS",78,93,null,null,"20º","PRESTÍGIO","RUAN/BARRINHA","PARAÍBA DO SUL",67,125]
["21º","SOBREVIVENTE","WL/JOÃO VITOR","PARAÍBA DO SUL",74,130,null,null,"21º","BRUTUS","HENRIQUE","TRÊS RIOS",77,86,null,null,"21º","ESPOLETA","RAFAEL","NITERÓI",86,91,null,null,"21º","NEXTEL","NATHAN","LEVY GASPARIAN",52,123]
["22º","EMOÇÃO","KLEBER SILVA","PETRÓPOLIS",124,127,null,null,"22º","RARIDADE","GUSTAVO/RAYANE","PARAÍBA DO SUL",75,74,null,null,"22º","ZIG-ZAG","MÁRCIO VINÍCIUS","LEVY GASPARIAN",74,91,null,null,"22º","GUERREIRO","JEFERSON","PARAÍBA DO SUL",86,120]
["23º","ANIMAL","DANILO MOREIRA","TRÊS RIOS",91,125,null,null,"23º","AMOSTRADINHO","RICARDINHO","PARAÍBA DO SUL",45,74,null,null,"23º","CARA PRETA","RAFAEL DE SOUZA","PARAÍBA DO SUL",49,89,null,null,"23º","FAIXA PRETA","KLEBER","AREAL",80,118]
["24º","JIRAYA","GABRIEL/TIAGO CORREA","PARAÍBA DO SUL",118,118,null,null,"24º","RENEGADO","ARTUR","TRÊS RIOS",60,49,null,null,"24º","BOPE","LOIRIN/DOMINGOS","PARAÍBA DO SUL",94,85,null,null,"24º","007","GUSTAVO","PARAÍBA DO SUL",58,116]
["25º","SCORPION","ADRIANO","PETRÓPOLIS",79,116,null,null,"25º",null,null,null,null,null,null,null,"25º","PELE SECA","HÉRCULES","TRÊS RIOS",57,65,null,null,"25º","RENEGADO","ARTUR","TRÊS RIOS",89,115]
["26º","VENON JÚNIOR","MURILO","TRÊS RIOS",80,111,null,null,"26º",null,null,null,null,null,null,null,"26º",null,null,null,null,null,null,null,"26º","FORASTEIRO","GABRIEL/WL FAM. MINGAL","PARAÍBA DO SUL",95,114]
["27º","PRÍNCIPE","FAMÍLIA HONORATO","PARAÍBA DO SUL",84,108,null,null,"27º",null,null,null,null,null,null,null,"27º",null,null,null,null,null,null,null,"27º","RAIO","NICOLAS REIS","ITAIPAVA",72,107]
["28º","RAIO","PABLO","ITAIPAVA",71,106,null,null,"28º",null,null,null,null,null,null,null,"28º",null,null,null,null,null,null,null,"28º","SENSAÇÃO","MIGUEL","TRÊS RIOS",96,104]
["29º","NOVA YORK","EDER","TRÊS RIOS",68,106,null,null,"29º",null,null,null,null,null,null,null,"29º",null,null,null,null,null,null,null,"29º","RAMBO","HENRIQUE","ANTA",56,95]
["30º","SELVA","WESLLEY","PATY DO ALFERES",102,102,null,null,"30º",null,null,null,null,null,null,null,"30º",null,null,null,null,null,null,null,"30º","ZIG-ZAG","MÁRCIO VINÍCIUS","LEVY GASPARIAN",125,88]
["31º","PITBULL","JOÃO MARCOS","AREAL",84,101,null,null,"31º",null,null,null,null,null,null,null,"31º",null,null,null,null,null,null,null,"31º","PANTERA","EDER","TRÊS RIOS",74,88]
["32º","SUPREMO","LEONARDO","SANTOS DUMONT",76,101,null,null,"32º",null,null,null,null,null,null,null,"32º",null,null,null,null,null,null,null,"32º","GOIANO","SAMIRIS","SÃO JOSÉ",68,85]
["33º","FORASTEIRO","GABRIEL/WL FAMÍLIA MINGAL","PARAÍBA DO SUL",142,100,null,null,"33º",null,null,null,null,null,null,null,"33º",null,null,null,null,null,null,null,"33º","RAFAH","UILIAN","TRÊS RIOS",89,77]
["34º","FORA DA ROTA","LEANDRO","SANTOS DUMONT",53,95,null,null,"34º",null,null,null,null,null,null,null,"34º",null,null,null,null,null,null,null,"34º","INGRATO","HÉRCULES","TRÊS RIOS",73,77]
["35º","ASTRO","DHACO","PARAÍBA DO SUL",70,87,null,null,"35º",null,null,null,null,null,null,null,"35º",null,null,null,null,null,null,null,"35º","DEGOLADOR","WL FAM. MINGAL/GABRIEL","PARAÍBA DO SUL",62,77]
["36º","BICO BRANCO","WL FAMÍLIA MINGAL/PAIVA","PARAÍBA DO SUL",77,85,null,null,null,null,null,null,null,null,null,null,null,null,null,null,null,null,null,null,"36º","MULEKE","FAMÍLIA HONORATO","PARAÍBA DO SUL",60,67]
["37º","THE FLASH","MURILO","AREAL",72,74,null,null,null,null,null,null,null,null,null,null,null,null,null,null,null,null,null,null,"37º","CARA PRETA","RAFAEL DE SOUZA","PARAÍBA DO SUL",81,66]
["38º","SELVAGEM","JOSENILTON","PARAÍBA DO SUL",72,70,null,null,null,null,null,null,null,null,null,null,null,null,null,null,null,null,null,null,"38º","CORINGA","WERLEYSON","TRÊS RIOS",62,62]
["39º","PILANTRA","LUCAS","TRÊS RIOS",60,67,null,null,null,null,null,null,null,null,null,null,null,null,null,null,null,null,null,null,"39º","CHARADA","JONAS","PETRÓPOLIS",51,57]
["40º","RELÂMPAGO","FABIANO/SAMIR","JUIZ DE FORA",62,66]
["41º","CEIFADOR","TATIN","TRÊS RIOS",76,56]
["42º","FILHOTE REI DA RUA","GUSTAVO/RAYANE","PARAÍBA DO SUL",50,48]
["43º","DRIVER","FABIANO","JUIZ DE FORA",84,39]
["44º","OROCK","MURILO","AREAL",60,34]

{"sheet":"mar2026","index":3,"n_rows":37,"n_cols":38,"rows_kept":37,"cut":false,"hidden":false,"merged":[[0,0,0,6],[0,8,0,14],[0,16,0,22],[0,24,0,29],[0,31,0,37]]}
["01/03/2026 (DOMINGO)",null,null,null,null,null,null,null,"08/03/2026 (DOMINGO)",null,null,null,null,null,null,null,"15/03/2026 (DOMINGO)",null,null,null,null,null,null,null,"22/03/2026 (DOMINGO)",null,null,null,null,null,null,"29/03/2026 (DOMINGO)"]
["POS.","PÁSSARO","PROPRIETÁRIO","ORIGEM","VASS.","CANTOS","PONTOS",null,"POS.","PÁSSARO","PROPRIETÁRIO","ORIGEM","VASS.","CANTOS","PONTOS",null,"POS.","PÁSSARO","PROPRIETÁRIO","ORIGEM","VASS.","CANTOS","PONTOS",null,"POS.","PÁSSARO","PROPRIETÁRIO","ORIGEM","CANTOS","PONTOS",null,"POS.","PÁSSARO","PROPRIETÁRIO","ORIGEM","VASS.","CANTOS","PONTOS"]
["1º","PAPA-LÉGUAS","VAZ","VASSOURAS",220,379,30,null,"1º","MUTANTE","CH/CARLIM","PARAÍBA DO SUL",143,194,30,null,"1º","PÉROLA NEGRA","ROMÁRIO OLIVEIRA","PETRÓPOLIS",131,233,30,null,"1º","MUTANTE","CH/CARLIM","PARAÍBA DO SUL",281,30,null,"1º","MUTANTE","CH/CARLIM","PARAÍBA DO SUL",202,213,30]
["2º","PÉROLA NEGRA","ROMÁRIO OLIVEIRA","PETRÓPOLIS",178,225,28,null,"2º","LAMPIÃO","ZECA/LUÍS","CHIADOR",108,186,28,null,"2º","PELÉ","WILLIAM","TRÊS RIOS",123,230,28,null,"2º","PIT BULL","JOÃO MARCOS","AREAL",222,28,null,"2º","MALIBÚ","PABLO","ITAIPAVA",95,205,28]
["3º","PROFETA","DHACO","PARAÍBA DO SUL",145,209,26,null,"3º","REI DA RUA","JONAS","TRÊS RIOS",103,171,26,null,"3º","MALIBÚ","PABLO","ITAIPAVA",130,184,26,null,"3º","PELÉ","WILLIAM","TRÊS RIOS",215,26,null,"3º","V8","GABRIEL/LEANDRO","PARAÍBA DO SUL",138,203,26]
["4º","JÓIA RARA","BAIANO","VASSOURAS",107,203,24,null,"4º","DEGOLADOR","GABRIEL/WL","PARAÍBA DO SUL",117,166,24,null,"4º","GENERAL","FAMÍLIA MINGAL","PARAÍBA DO SUL",96,157,24,null,"4º","V8","LEANDRO/GABRIEL","PARAÍBA DO SUL",212,24,null,"4º","DEGOLADOR","WL/GABRIEL","PARAÍBA DO SUL",122,151,24]
["5º","MUTANTE","CH/CARLIM","PARAÍBA DO SUL",155,192,23,null,"5º","TREM","RAFAEL","PARAÍBA DO SUL",122,150,23,null,"5º","MUTANTE","CH/CARLIM","PARAÍBA DO SUL",123,155,23,null,"5º","MALIBÚ","PABLO","ITAIPAVA",199,23,null,"5º","CAPOEIRA","AMARILDO","VASSOURAS",82,150,23]
["6º","TREM","RAFAEL","PARAÍBA DO SUL",154,181,22,null,"6º","AMOSTRADINHO","PAULINHO/ARTHUR","TRÊS RIOS",122,150,22,null,"6º","V8","GABRIEL/LEANDRO","PARAÍBA DO SUL",124,152,22,null,"6º","KID","VLADIMIR","PARAÍBA DO SUL",187,22,null,"6º","PANTERA NEGRA","PABLO","ITAIPAVA",111,148,22]
["7º","DUBAI","WILLIAM","TRÊS RIOS",141,174,21,null,"7º","RAIO","NICOLAS REIS","ITAIPAVA",95,150,21,null,"7º","CAPOEIRA","AMARILDO","VASSOURAS",86,150,21,null,"7º","DEGOLADOR","GABRIEL/WL FAMÍLIA MINGAL","PARAÍBA DO SUL",178,21,null,"7º","PIT BULL","JOÃO MARCOS","AREAL",97,148,21]
["8º","THOR","NATHAN","LEVY GASPARIAN",85,173,20,null,"8º","ZIDANE","GUSTAVO/JHONATAS","PARAÍBA DO SUL",61,150,20,null,"8º","MENTIRINHA","FERNANDO PEREIRA","PETRÓPOLIS",77,144,20,null,"8º","PANTERA NEGRA","PABLO","ITAIPAVA",166,20,null,"8º","AMOSTRADINHO","PAULINHO","TRÊS RIOS",135,139,20]
["9º","PANTERA NEGRA","PABLO","ITAIPAVA",110,165,19,null,"9º","MAGO NEGRO","CLOVIS/RODRIGO","TRÊS RIOS",113,148,19,null,"9º","AMOSTRADINHO","PAULINHO/ARTHUR","TRÊS RIOS",110,143,19,null,"9º","THOR","NATHAN","LEVY GASPARIAN",165,19,null,"9º","CHUPA-CABRA","REINALDO","BARBACENA",115,135,19]
["10º","FAÍSCA","BRUNO/RODRIGO","PETRÓPOLIS",107,162,18,null,"10º","MENINO MALUCO","BRUNO","TRÊS RIOS",114,140,18,null,"10º","LAMPIÃO","ZECA/LUÍS","CHIADOR",97,143,18,null,"10º","CLONE","GIBA","TRÊS RIOS",164,18,null,"10º","THANOS","SILAS FLÁVIO","TRÊS RIOS",114,134,18]
["11º","DEGOLADOR","GABRIEL/WL FAMÍLIA MINGAL","PARAÍBA DO SUL",113,158,17,null,"11º","SAMÁ","KLEBER","AREAL",85,137,17,null,"11º","MALUQUINHO","CLOVIS/RODRIGO","-",92,141,17,null,"11º","CASCAVEL","ANDRÉ/BRUNO","PARAÍBA DO SUL",162,17,null,"11º","ESCOBAR","IGOR","PARAÍBA DO SUL",91,130,17]
["12º","REI DA RUA","JONAS","TRÊS RIOS",115,154,16,null,"12º","PITBULL","JOÃO MARCOS","AREAL",91,134,16,null,"12º","WOLVERINE","PAULINHO","TRÊS RIOS",135,131,16,null,"12º","AMOSTRADINHO","PAULINHO","TRÊS RIOS",161,16,null,"12º","MENINO DO MORRO","GABRIEL/VLADIMIR","PARAÍBA DO SUL",50,125,16]
["13º","MENINO MALUCO","BRUNO","TRÊS RIOS",132,152,15,null,"13º","PICA-PAU","ADÃO","TRÊS RIOS",91,127,15,null,"13º","PEDRADA","BRUNO/RODRIGO","PETRÓPOLIS",62,130,15,null,"13º","WOLVERINE","PAULINHO","TRÊS RIOS",155,15,null,"13º","RAIO","NICOLAS REIS","ITAIPAVA",106,124,15]
["14º","JIRAYA","GABRIEL/TIAGO","PARAÍBA DO SUL",83,152,14,null,"14º","SOBREVIVENTE","WL FAMÍLIA MINGAL","PARAÍBA DO SUL",116,121,14,null,"14º","DEGOLADOR","GABRIEL/WL F. MINGAL","PARAÍBA DO SUL",86,126,14,null,"14º","TRÓIA","BRUNO","TRÊS RIOS",150,14,null,"14º","JÓIA RARA","BAIANO","VASSOURAS",55,118,14]
["15º","TROVÃO","JUNINHO","TRÊS RIOS",91,141,13,null,"15º","TROVÃO","JUNINHO","TRÊS RIOS",115,120,13,null,"15º","MARRETA","BAIANO","VASSOURAS",84,125,13,null,"15º","TREM","RAFAEL","PARAÍBA DO SUL",149,13,null,"15º","PALETÓ","LI","BARBACENA",59,115,13]
["16º","PIT BULL","JOÃO MARCOS","AREAL",102,139,null,null,"16º","ESPARTANO","ITALLO","PARAÍBA DO SUL",92,120,null,null,"16º","MENINO MALUCO","BRUNO","TRÊS RIOS",107,122,null,null,"16º","SOBREVIVENTE","WL FAMÍLIA MINGAL","PARAÍBA DO SUL",130,null,null,"16º","CLONE","GIBA","TRÊS RIOS",96,112]
["17º","FORASTEIRO","GABRIEL/WL FAMÍLIA MINGAL","PARAÍBA DO SUL",85,136,null,null,"17º","FAÍSCA","BRUNO BRANCO","PETRÓPOLIS",52,115,null,null,"17º","MARGINAL","GABRIEL/ZIEL","PARAÍBA DO SUL",69,122,null,null,"17º","DICK VIGARISTA","JONAS/ALCEBIADES","TRÊS RIOS",130,null,null,"17º","GUERREIRO","ANTÔNIO MENEGUIT","CACHOEIRA DE MACACU",67,108]
["18º","PRESTÍGIO","RUAN/BARRINHA","PARAÍBA DO SUL",68,125,null,null,"18º","BIG MONEY","ADLER OLIVEIRA","AREAL",131,105,null,null,"18º","PICA-PAU","ADÃO","TRÊS RIOS",66,120,null,null,"18º","RAIO","NICOLAS REIS","ITAIPAVA",118,null,null,"18º","ROCKY","SAULO","PARAÍBA DO SUL",85,106]
["19º","SAFONOV","DAVI","LEVY GASPARIAN",118,115,null,null,"19º","NEXTEL","NATHAN","LEVY GASPARIAN",76,104,null,null,"19º","ANIMAL","EULER","TRÊS RIOS",51,113,null,null,"19º","CHARADA","JONAS","TRÊS RIOS",113,null,null,"19º","INVOCADO","ANDRÉ FREITAS","PETRÓPOLIS",104,101]
["20º","ZIG-ZAG","MÁRCIO VINÍCIUS","LEVY GASPARIAN",71,111,null,null,"20º","BOPE","VITOR","TRÊS RIOS",97,98,null,null,"20º","KID","VLADIMIR","PARAÍBA DO SUL",67,108,null,null,"20º","MARGINAL","GABRIEL/ZIEL","PARAÍBA DO SUL",111,null,null,"20º","CHARADA","JONAS/ALCEBIADES","TRÊS RIOS",99,100]
["21º","THANOS","SILAS FLÁVIO","TRÊS RIOS",92,107,null,null,"21º","D DEUS","LUIZ GUSTAVO","PARAÍBA DO SUL",66,87,null,null,"21º","MATUÊ","DOMINGOS/LOIRIN","PARAÍBA DO SUL",44,108,null,null,"21º","FAÍSCA","-","-",110,null,null,"21º","RARIDADE","GUSTAVO","PARAÍBA DO SUL",67,89]
["22º","MASSACRE","HENRIQUE","PARAÍBA DO SUL",72,107,null,null,"22º","WOLVERINE","PAULINHO/ARTHUR","TRÊS RIOS",113,86,null,null,"22º","CORINGA","ANTÔNIO MENEGUIT","CACHOEIRA DE MACACU",82,106,null,null,"22º","GOIANO","SAMIRIS CARDOSO","SÃO JOSÉ",109,null,null,"22º","BRADOCK","FAMÍLIA HONORATO","PARAÍBA DO SUL",71,85]
["23º","PICA-PAU","ADÃO","TRÊS RIOS",68,106,null,null,"23º","ZIG-ZAG","MÁRCIO VINÍCIUS","LEVY GASPARIAN",84,79,null,null,"23º","JILÓ","GABRIEL/WL F. MINGAL","PARAÍBA DO SUL",89,102,null,null,"23º","RARIDADE","GUSTAVO","PARAÍBA DO SUL",107,null,null,"23º","ANIMAL","EULER","TRÊS RIOS",114,77]
["24º","CORINGA","SAMIRES","SÃO JOSÉ",80,103,null,null,"24º","CORINGA","WERLEISON","TRÊS RIOS",85,76,null,null,"24º","ESPARTANO","ITALLO","PARAÍBA DO SUL",65,93,null,null,"24º","MALUQUINHO","CLOVIS/RODRIGO","-",107,null,null,"24º","PEDREIRA","MAICON","TRÊS RIOS",61,77]
["25º","EXCALIBUR","FAMÍLIA HONORATO","PARAÍBA DO SUL",103,90,null,null,"25º","PANTERA","EDER","TRÊS RIOS",61,65,null,null,"25º","D DEUS","LUIZ GUSTAVO","PARAÍBA DO SUL",56,92,null,null,"25º","BRINQUEDO","FAMÍLIA HONORATO","PARAÍBA DO SUL",106,null,null,"25º","CORINGA","CLEITON","PARAÍBA DO SUL",57,70]
["26º","CABALA","JONAS","PETRÓPOLIS",65,76,null,null,"26º","ZEUS","GLEISSON","PETRÓPOLIS",65,62,null,null,"26º","PURO LUXO","THIAGO","AREAL",69,90,null,null,"26º","INSANO","ANDRÉ FREITAS","PETRÓPOLIS",102,null,null,"26º","WOLVERINE","PAULINHO","TRÊS RIOS",101,66]
["27º","ESPARTANO","ITALLO","PARAÍBA DO SUL",107,72,null,null,"27º","BERLIM","EDER","TRÊS RIOS",65,60,null,null,"27º","PULGAR","RODRIGO/CÉSAR","PETRÓPOLIS",101,87,null,null,"27º","CAVUCO","MATHEUS/CT LIMA","PARAÍBA DO SUL",102,null,null,"27º","RENEGADO","ARTUR","TRÊS RIOS",60,58]
["28º",null,null,null,null,null,null,null,"28º","RAMBO","HENRIQUE","ANTA",104,32,null,null,"28º","PROFETA","DHACO","PARAÍBA DO SUL",104,82,null,null,"28º","D. DEUS","LUIZ GUSTAVO","PARAÍBA DO SUL",102,null,null,"28º","MARRETA","BAIANO","VASSOURAS",90,44]
["29º",null,null,null,null,null,null,null,"29º","KID","VLADIMIR","PARAÍBA DO SUL",58,26,null,null,"29º","RARIDADE","GUSTAVO","PARAÍBA DO SUL",78,81,null,null,"29º","MENINO DO MORRO","GABRIEL/VLADIMIR","PARAÍBA DO SUL",73,null,null,"29º"]
["30º",null,null,null,null,null,null,null,"30º",null,null,null,null,null,null,null,"30º","ELITE","FERNANDO PEREIRA","PETRÓPOLIS",110,59,null,null,"30º","RENEGADO","ARTUR","TRÊS RIOS",61,null,null,"30º"]
["31º",null,null,null,null,null,null,null,"31º",null,null,null,null,null,null,null,"31º",null,null,null,null,null,null,null,"31º","ROBUSTO","JONHATA","LEVY GASPARIAN",46,null,null,"31º"]
["32º",null,null,null,null,null,null,null,"32º",null,null,null,null,null,null,null,"32º",null,null,null,null,null,null,null,"32º",null,null,null,null,null,null,"32º"]
["33º",null,null,null,null,null,null,null,"33º",null,null,null,null,null,null,null,"33º",null,null,null,null,null,null,null,"33º",null,null,null,null,null,null,"33º"]
["34º",null,null,null,null,null,null,null,"34º",null,null,null,null,null,null,null,"34º",null,null,null,null,null,null,null,"34º",null,null,null,null,null,null,"34º"]
["35º",null,null,null,null,null,null,null,"35º",null,null,null,null,null,null,null,"35º",null,null,null,null,null,null,null,"35º",null,null,null,null,null,null,"35º"]

{"sheet":"MODELO","index":4,"n_rows":210,"n_cols":7,"rows_kept":210,"cut":false,"hidden":false,"merged":[[0,0,0,6],[42,0,42,6],[84,0,84,6],[126,0,126,6],[168,0,168,6]]}
[]
["POS.","PÁSSARO","PROPRIETÁRIO","ORIGEM","VASS.","CANTOS","PONTOS"]
["1º",null,null,null,null,null,30]
["2º",null,null,null,null,null,28]
["3º",null,null,null,null,null,26]
["4º",null,null,null,null,null,24]
["5º",null,null,null,null,null,23]
["6º",null,null,null,null,null,22]
["7º",null,null,null,null,null,21]
["8º",null,null,null,null,null,20]
["9º",null,null,null,null,null,19]
["10º",null,null,null,null,null,18]
["11º",null,null,null,null,null,17]
["12º",null,null,null,null,null,16]
["13º",null,null,null,null,null,15]
["14º",null,null,null,null,null,14]
["15º",null,null,null,null,null,13]
["16º"]
["17º"]
["18º"]
["19º"]
["20º"]
["21º"]
["22º"]
["23º"]
["24º"]
["25º"]
["26º"]
["27º"]
["28º"]
["29º"]
["30º"]
["31º"]
["32º"]
["33º"]
["34º"]
["35º"]
["36º"]
["37º"]
["38º"]
["39º"]
["40º"]
[{"$f":"A1+7","v":"1900-01-07"}]
["POS.","PÁSSARO","PROPRIETÁRIO","ORIGEM","VASS.","CANTOS","PONTOS"]
["1º",null,null,null,null,null,30]
["2º",null,null,null,null,null,28]
["3º",null,null,null,null,null,26]
["4º",null,null,null,null,null,24]
["5º",null,null,null,null,null,23]
["6º",null,null,null,null,null,22]
["7º",null,null,null,null,null,21]
["8º",null,null,null,null,null,20]
["9º",null,null,null,null,null,19]
["10º",null,null,null,null,null,18]
["11º",null,null,null,null,null,17]
["12º",null,null,null,null,null,16]
["13º",null,null,null,null,null,15]
["14º",null,null,null,null,null,14]
["15º",null,null,null,null,null,13]
["16º"]
["17º"]
["18º"]
["19º"]
["20º"]
["21º"]
["22º"]
["23º"]
["24º"]
["25º"]
["26º"]
["27º"]
["28º"]
["29º"]
["30º"]
["31º"]
["32º"]
["33º"]
["34º"]
["35º"]
["36º"]
["37º"]
["38º"]
["39º"]
["40º"]
[{"$f":"A43+7","v":"1900-01-14"}]
["POS.","PÁSSARO","PROPRIETÁRIO","ORIGEM","VASS.","CANTOS","PONTOS"]
["1º",null,null,null,null,null,30]
["2º",null,null,null,null,null,28]
["3º",null,null,null,null,null,26]
["4º",null,null,null,null,null,24]
["5º",null,null,null,null,null,23]
["6º",null,null,null,null,null,22]
["7º",null,null,null,null,null,21]
["8º",null,null,null,null,null,20]
["9º",null,null,null,null,null,19]
["10º",null,null,null,null,null,18]
["11º",null,null,null,null,null,17]
["12º",null,null,null,null,null,16]
["13º",null,null,null,null,null,15]
["14º",null,null,null,null,null,14]
["15º",null,null,null,null,null,13]
["16º"]
["17º"]
["18º"]
["19º"]
["20º"]
["21º"]
["22º"]
["23º"]
["24º"]
["25º"]
["26º"]
["27º"]
["28º"]
["29º"]
["30º"]
["31º"]
["32º"]
["33º"]
["34º"]
["35º"]
["36º"]
["37º"]
["38º"]
["39º"]
["40º"]
[{"$f":"A85+7","v":"1900-01-21"}]
["POS.","PÁSSARO","PROPRIETÁRIO","ORIGEM","VASS.","CANTOS","PONTOS"]
["1º",null,null,null,null,null,30]
["2º",null,null,null,null,null,28]
["3º",null,null,null,null,null,26]
["4º",null,null,null,null,null,24]
["5º",null,null,null,null,null,23]
["6º",null,null,null,null,null,22]
["7º",null,null,null,null,null,21]
["8º",null,null,null,null,null,20]
["9º",null,null,null,null,null,19]
["10º",null,null,null,null,null,18]
["11º",null,null,null,null,null,17]
["12º",null,null,null,null,null,16]
["13º",null,null,null,null,null,15]
["14º",null,null,null,null,null,14]
["15º",null,null,null,null,null,13]
["16º"]
["17º"]
["18º"]
["19º"]
["20º"]
["21º"]
["22º"]
["23º"]
["24º"]
["25º"]
["26º"]
["27º"]
["28º"]
["29º"]
["30º"]
["31º"]
["32º"]
["33º"]
["34º"]
["35º"]
["36º"]
["37º"]
["38º"]
["39º"]
["40º"]
[{"$f":"A127+7","v":"1900-01-28"}]
["POS.","PÁSSARO","PROPRIETÁRIO","ORIGEM","VASS.","CANTOS","PONTOS"]
["1º",null,null,null,null,null,30]
["2º",null,null,null,null,null,28]
["3º",null,null,null,null,null,26]
["4º",null,null,null,null,null,24]
["5º",null,null,null,null,null,23]
["6º",null,null,null,null,null,22]
["7º",null,null,null,null,null,21]
["8º",null,null,null,null,null,20]
["9º",null,null,null,null,null,19]
["10º",null,null,null,null,null,18]
["11º",null,null,null,null,null,17]
["12º",null,null,null,null,null,16]
["13º",null,null,null,null,null,15]
["14º",null,null,null,null,null,14]
["15º",null,null,null,null,null,13]
["16º"]
["17º"]
["18º"]
["19º"]
["20º"]
["21º"]
["22º"]
["23º"]
["24º"]
["25º"]
["26º"]
["27º"]
["28º"]
["29º"]
["30º"]
["31º"]
["32º"]
["33º"]
["34º"]
["35º"]
["36º"]
["37º"]
["38º"]
["39º"]
["40º"]